fUST/lending_fUST_20250210
["ID","MTS","AMOUNT","RATE_DAILY","PERIOD"]
[352613624,1739200241874,-500.0,0.00011232,2]
[352613625,1739200241883,-504.71221909,0.00011232,2]
[352613626,1739200241892,-500.0,0.00011232,2]
[352613627,1739200241902,-560.32,0.00011232,2]
[352613628,1739200241911,-500.0,0.00011232,2]
[352613629,1739200241920,-500.0,0.00011232,2]
[352613630,1739200241929,-500.0,0.00011232,2]
[352613631,1739200241940,-236.20387214,0.00011232,2]
[352613632,1739200241949,-500.0,0.00011232,2]
[352613633,1739200241960,-500.0,0.00011232,2]
[352613634,1739200241969,-500.0,0.00011232,2]
[352613635,1739200241979,-500.0,0.00011232,2]
[352613636,1739200241988,-500.0,0.00011232,2]
[352613637,1739200241997,-500.0,0.00011232,2]
[352613638,1739200242007,-500.0,0.00011232,2]
[352613639,1739200242016,-500.0,0.00011232,2]
[352613640,1739200242026,-13087.13,0.00011232,2]
[352613641,1739200242035,-500.0,0.00011232,2]
[352613642,1739200242044,-437.36013187,0.00011232,2]
[352613643,1739200242054,-2368.48,0.00011232,2]
[352613644,1739200242063,-756.19,0.00011232,2]
[352613645,1739200242072,-500.0,0.00011232,2]
[352613646,1739200242082,-577.03,0.00011232,2]
[352613647,1739200242091,-628.96,0.00011232,2]
[352613648,1739200242100,-500.0,0.00011232,2]
[352613649,1739200242110,-500.0,0.00011232,2]
[352613650,1739200242120,-500.0,0.00011232,2]
[352613651,1739200242129,-500.0,0.00011232,2]
[352613652,1739200242140,-526.4599109,0.00011232,2]
[352613653,1739200242150,-500.0,0.00011232,2]
[352613654,1739200242159,-500.0,0.00011232,2]
[352613655,1739200242168,-1428.28,0.00011232,2]
[352613656,1739200242178,-2113.79,0.00011232,2]
[352613657,1739200242189,-606.7,0.00011232,2]
[352613658,1739200242198,-6346.95,0.00011232,2]
[352613659,1739200242207,-500.0,0.00011232,2]
[352613660,1739200242219,-500.0,0.00011232,2]
[352613661,1739200242228,-517.11,0.00011232,2]
[352613662,1739200242237,-500.0,0.00011232,2]
[352613663,1739200242247,-500.0,0.00011232,2]
[352613664,1739200242256,-631.71,0.00011232,2]
[352613665,1739200242266,-500.0,0.00011232,2]
[352613666,1739200242275,-500.0,0.00011232,2]
[352613667,1739200242284,-500.0,0.00011232,2]
[352613668,1739200242293,-500.0,0.00011232,2]
[352613669,1739200242302,-500.0,0.00011232,2]
[352613670,1739200242311,-601.74,0.00011232,2]
[352613671,1739200242321,-500.0,0.00011232,2]
[352613672,1739200242330,-500.0,0.00011232,2]
[352613673,1739200242339,-500.0,0.00011232,2]
[352613674,1739200242349,-557.35,0.00011232,2]
[352613675,1739200242358,-500.0,0.00011232,2]
[352613676,1739200242367,-500.0,0.00011232,2]
[352613677,1739200242376,-500.0,0.00011232,2]
[352613678,1739200242385,-500.0,0.00011232,2]
[352613679,1739200242394,-940.27,0.00011232,2]
[352613680,1739200242403,-500.0,0.00011232,2]
[352613681,1739200242412,-500.0,0.00011232,2]
[352613682,1739200242422,-1223.86,0.00011232,2]
[352613683,1739200242431,-500.0,0.00011232,2]
[352613684,1739200242442,-500.0,0.00011232,2]
[352613685,1739200242451,-500.0,0.00011232,2]
[352613686,1739200242460,-4805.69,0.00011232,2]
[352613687,1739200242469,-500.0,0.00011232,2]
[352613688,1739200242479,-561.21,0.00011232,2]
[352613689,1739200242488,-500.0,0.00011232,2]
[352613690,1739200242497,-2762.59,0.00011232,2]
[352613691,1739200242506,-500.0,0.00011232,2]
[352613692,1739200242516,-555.47,0.00011232,2]
[352613693,1739200242525,-509.23066298,0.00011232,2]
[352613694,1739200242535,-500.0,0.00011232,2]
[352613695,1739200242544,-500.0,0.00011232,2]
[352613696,1739200242554,-1420.21,0.00011232,2]
[352613697,1739200242563,-768.73,0.00011232,2]
[352613698,1739200242572,-500.0,0.00011232,2]
[352613699,1739200242582,-500.0,0.00011232,2]
[352613700,1739200242591,-500.0,0.00011232,2]
[352613701,1739200242600,-953.19,0.00011232,2]
[352613702,1739200242609,-500.0,0.00011232,2]
[352613703,1739200242619,-500.0,0.00011369,2]
[352613704,1739200242628,-500.0,0.00011369,2]
[352613705,1739200242637,-500.0,0.00011369,2]
[352613706,1739200242646,-500.0,0.00011369,2]
[352613707,1739200242655,-500.0,0.00011369,2]
[352613708,1739200242664,-500.0,0.00011369,2]
[352613709,1739200242673,-500.0,0.00011369,2]
[352613710,1739200242682,-500.0,0.00011369,2]
[352613711,1739200242694,-500.0,0.00011369,2]
[352613712,1739200242703,-500.0,0.00011369,2]
[352613713,1739200242713,-500.0,0.00011369,2]
[352613714,1739200242722,-500.0,0.00011369,2]
[352613715,1739200242732,-239.21151646,0.00011369,2]
[352613716,1739200242742,-564.9,0.00011369,2]
[352613717,1739200242751,-500.0,0.00011369,2]
[352613718,1739200242761,-627.22,0.00011369,2]
[352613719,1739200242771,-500.0,0.00011369,2]
[352613720,1739200242780,-500.0,0.00011369,2]
[352613721,1739200242790,-500.0,0.00011369,2]
[352613722,1739200242800,-500.0,0.00011369,2]
[352613723,1739200242809,-537.54,0.00011369,2]
[352613724,1739200242818,-500.0,0.00011369,2]
[352613725,1739200242827,-843.72,0.00011369,2]
[352613726,1739200242837,-500.0,0.00011369,2]
[352613727,1739200242846,-500.0,0.00011369,2]
[352613728,1739200242855,-560.32,0.00011369,2]
[352613729,1739200242864,-500.0,0.00011369,2]
[352613730,1739200242874,-500.0,0.00011369,2]
[352613731,1739200242883,-500.0,0.00011369,2]
[352613732,1739200242893,-500.0,0.00011369,2]
[352613733,1739200242902,-500.0,0.00011369,2]
[352613734,1739200242911,-500.0,0.00011369,2]
[352613735,1739200242922,-500.0,0.00011369,2]
[352613736,1739200242931,-500.0,0.00011369,2]
[352613737,1739200242942,-13087.13,0.00011369,2]
[352613738,1739200242951,-500.0,0.00011369,2]
[352613739,1739200242962,-2368.48,0.00011369,2]
[352613740,1739200242971,-756.19,0.00011369,2]
[352613741,1739200242980,-500.0,0.00011369,2]
[352613742,1739200242990,-577.03,0.00011369,2]
[352613743,1739200243000,-628.96,0.00011369,2]
[352613744,1739200243010,-500.0,0.00011369,2]
[352613745,1739200243019,-500.0,0.00011369,2]
[352613746,1739200243029,-500.0,0.00011369,2]
[352613747,1739200243039,-500.0,0.00011369,2]
[352613748,1739200243049,-500.0,0.00011369,2]
[352613749,1739200243058,-500.0,0.00011369,2]
[352613750,1739200243068,-1428.28,0.00011369,2]
[352613751,1739200243077,-2113.79,0.00011369,2]
[352613752,1739200243087,-606.7,0.00011369,2]
[352613753,1739200243096,-6346.95,0.00011369,2]
[352613754,1739200243105,-500.0,0.00011369,2]
[352613755,1739200243115,-517.11,0.00011369,2]
[352613756,1739200243124,-500.0,0.00011369,2]
[352613757,1739200243138,-500.0,0.00011369,2]
[352613759,1739200243147,-631.71,0.00011369,2]
[352613760,1739200243157,-500.0,0.00011369,2]
[352613762,1739200243166,-500.0,0.00011369,2]
[352613763,1739200243175,-500.0,0.00011369,2]
[352613764,1739200243185,-601.74,0.00011369,2]
[352613765,1739200243194,-500.0,0.00011369,2]
[352613766,1739200243203,-557.35,0.00011369,2]
[352613769,1739200243213,-500.0,0.00011369,2]
[352613770,1739200243223,-500.0,0.00011369,2]
[352613772,1739200243232,-613.27542839,0.00011369,2]
[352613774,1739200243242,-940.27,0.00011369,2]
[352613776,1739200243251,-500.0,0.00011369,2]
[352613777,1739200243260,-500.0,0.00011369,2]
[352613778,1739200243269,-1223.86,0.00011369,2]
[352613779,1739200243279,-500.0,0.00011369,2]
[352613780,1739200243288,-500.0,0.00011369,2]
[352613781,1739200243297,-500.0,0.00011369,2]
[352613782,1739200243306,-4805.69,0.00011369,2]
[352613783,1739200243315,-500.0,0.00011369,2]
[352613784,1739200243324,-561.21,0.00011369,2]
[352613785,1739200243333,-500.0,0.00011369,2]
[352613786,1739200243343,-2762.59,0.00011369,2]
[352613787,1739200243352,-555.47,0.00011369,2]
[352613789,1739200243361,-500.0,0.00011369,2]
[352613790,1739200243370,-500.0,0.00011369,2]
[352613791,1739200243379,-1420.21,0.00011369,2]
[352613792,1739200243388,-768.73,0.00011369,2]
[352613793,1739200243397,-500.0,0.00011369,2]
[352613794,1739200243406,-500.0,0.00011369,2]
[352613795,1739200243415,-500.0,0.00011369,2]
[352613796,1739200243424,-953.19,0.00011369,2]
[352613797,1739200243434,-500.0,0.00011369,2]
[352613798,1739200243444,-354.7727591,0.00011425,2]
[352613799,1739200243453,-500.0,0.0001143,2]
[352613800,1739200243463,-500.0,0.0001143,2]
[352613801,1739200243471,-621.70952141,0.0001143,2]
[352613802,1739200243480,-354.8426056,0.00011452,2]
[352613803,1739200243490,-354.8426056,0.00011452,2]
[352613804,1739200243498,-354.8426056,0.00011452,2]
[352613805,1739200243507,-354.5632196,0.00011452,2]
[352613806,1739200243517,-500.0,0.00011454,2]
[352613807,1739200243526,-500.0,0.00011454,2]
[352613808,1739200243535,-500.0,0.00011454,2]
[352613809,1739200243544,-500.0,0.00011465,2]
[352613810,1739200243553,-500.0,0.00011481,2]
[352613811,1739200243563,-626.10567238,0.00011481,2]
[352613812,1739200243572,-500.86851527,0.00011481,2]
[352613813,1739200243581,-386.01861773,0.00011481,2]
[352613814,1739200243590,-502.27251224,0.00011481,2]
[352613815,1739200243598,-497.60941393,0.00011481,2]
[352613816,1739200243607,-500.0,0.0001149,2]
[352613817,1739200243617,-600.01590705,0.0001149,2]
[352613818,1739200243626,-500.0,0.0001149,2]
[352613819,1739200243635,-500.0,0.0001149,2]
[352613820,1739200243645,-500.0,0.0001149,2]
[352613821,1739200243654,-500.0,0.00011502,2]
[352613822,1739200243664,-500.0,0.00011506,2]
[352613823,1739200243673,-500.0,0.00011506,2]
[352613824,1739200243682,-500.0,0.00011506,2]
[352613825,1739200243693,-500.0,0.00011506,2]
[352613827,1739200243702,-500.0,0.00011506,2]
[352613829,1739200243711,-537.15448279,0.00011506,2]
[352613831,1739200243721,-500.0,0.00011506,2]
[352613833,1739200243730,-254.66862441,0.00011506,2]
[352613835,1739200243740,-395.25090178,0.00011506,2]
[352613837,1739200243749,-564.9,0.00011506,2]
[352613839,1739200243758,-500.0,0.00011506,2]
[352613841,1739200243767,-627.22,0.00011506,2]
[352613843,1739200243776,-500.0,0.00011506,2]
[352613844,1739200243785,-500.0,0.00011506,2]
[352613845,1739200243879,-500.0,0.00011506,2]
[352613846,1739200243889,-500.0,0.00011506,2]
[352613847,1739200243899,-537.54,0.00011506,2]
[352613848,1739200243908,-500.0,0.00011506,2]
[352613849,1739200243917,-843.72,0.00011506,2]
[352613850,1739200243928,-500.0,0.00011506,2]
[352613851,1739200243939,-500.0,0.00011506,2]
[352613852,1739200243948,-560.32,0.00011506,2]
[352613853,1739200243958,-500.0,0.00011506,2]
[352613854,1739200243968,-500.0,0.00011506,2]
[352613855,1739200243977,-500.0,0.00011506,2]
[352613856,1739200243987,-500.0,0.00011506,2]
[352613857,1739200243996,-500.0,0.00011506,2]
[352613858,1739200244006,-500.0,0.00011506,2]
[352613859,1739200244016,-500.0,0.00011506,2]
[352613860,1739200244026,-13087.13,0.00011506,2]
[352613861,1739200244036,-2368.48,0.00011506,2]
[352613862,1739200244046,-756.19,0.00011506,2]
[352613863,1739200244055,-500.0,0.00011506,2]
[352613864,1739200244065,-577.03,0.00011506,2]
[352613865,1739200244075,-628.96,0.00011506,2]
[352613866,1739200244085,-500.0,0.00011506,2]
[352613867,1739200244095,-500.0,0.00011506,2]
[352613868,1739200244105,-500.0,0.00011506,2]
[352613869,1739200244114,-500.0,0.00011506,2]
[352613870,1739200244124,-500.0,0.00011506,2]
[352613871,1739200244134,-500.0,0.00011506,2]
[352613872,1739200244147,-1428.28,0.00011506,2]
[352613873,1739200244157,-2113.79,0.00011506,2]
[352613874,1739200244166,-606.7,0.00011506,2]
[352613875,1739200244175,-6346.95,0.00011506,2]
[352613876,1739200244185,-500.0,0.00011506,2]
[352613877,1739200244196,-517.11,0.00011506,2]
[352613878,1739200244206,-500.0,0.00011506,2]
[352613879,1739200244218,-500.0,0.00011506,2]
[352613880,1739200244228,-631.71,0.00011506,2]
[352613881,1739200244238,-500.0,0.00011506,2]
[352613882,1739200244247,-500.0,0.00011506,2]
[352613883,1739200244257,-500.0,0.00011506,2]
[352613884,1739200244267,-601.74,0.00011506,2]
[352613885,1739200244276,-500.0,0.00011506,2]
[352613886,1739200244286,-500.0,0.00011506,2]
[352613887,1739200244295,-557.35,0.00011506,2]
[352613888,1739200244305,-940.27,0.00011506,2]
[352613889,1739200244314,-500.0,0.00011506,2]
[352613890,1739200244323,-224.02,0.00011506,2]
[352613891,1739200244332,-1223.86,0.00011506,2]
[352613892,1739200244342,-500.0,0.00011506,2]
[352613893,1739200244351,-500.0,0.00011506,2]
[352613894,1739200244360,-500.0,0.00011506,2]
[352613895,1739200244370,-4805.69,0.00011506,2]
[352613896,1739200244379,-500.0,0.00011506,2]
[352613897,1739200244388,-561.21,0.00011506,2]
[352613898,1739200244397,-500.0,0.00011506,2]
[352613899,1739200244406,-2762.59,0.00011506,2]
[352613900,1739200244417,-555.47,0.00011506,2]
[352613901,1739200244426,-500.0,0.00011506,2]
[352613902,1739200244435,-500.0,0.00011506,2]
[352613903,1739200244448,-1420.21,0.00011506,2]
[352613904,1739200244458,-768.73,0.00011506,2]
[352613905,1739200244467,-500.0,0.00011506,2]
[352613906,1739200244476,-500.0,0.00011506,2]
[352613907,1739200244485,-500.0,0.00011506,2]
[352613908,1739200244494,-953.19,0.00011506,2]
[352613909,1739200244504,-500.0,0.00011506,2]
[352613910,1739200244513,-500.0,0.00011567,2]
[352613911,1739200244522,-500.0,0.00011643,2]
[352613912,1739200244531,-500.0,0.00011643,2]
[352613913,1739200244541,-500.0,0.00011643,2]
[352613914,1739200244550,-500.0,0.00011643,2]
[352613915,1739200244559,-500.0,0.00011643,2]
[352613916,1739200244568,-564.9,0.00011643,2]
[352613917,1739200244578,-500.0,0.00011643,2]
[352613918,1739200244587,-627.22,0.00011643,2]
[352613919,1739200244596,-500.0,0.00011643,2]
[352613920,1739200244605,-500.0,0.00011643,2]
[352613921,1739200244615,-500.0,0.00011643,2]
[352613922,1739200244624,-500.0,0.00011643,2]
[352613923,1739200244634,-537.54,0.00011643,2]
[352613924,1739200244642,-500.0,0.00011643,2]
[352613925,1739200244652,-843.72,0.00011643,2]
[352613926,1739200244661,-500.0,0.00011643,2]
[352613927,1739200244670,-500.0,0.00011643,2]
[352613928,1739200244680,-560.32,0.00011643,2]
[352613929,1739200244691,-500.0,0.00011643,2]
[352613930,1739200244700,-500.0,0.00011643,2]
[352613931,1739200244709,-500.0,0.00011643,2]
[352613932,1739200244719,-500.0,0.00011643,2]
[352613933,1739200244728,-500.0,0.00011643,2]
[352613934,1739200244737,-500.0,0.00011643,2]
[352613935,1739200244746,-500.0,0.00011643,2]
[352613936,1739200244755,-13087.13,0.00011643,2]
[352613937,1739200244764,-2368.48,0.00011643,2]
[352613938,1739200244773,-756.19,0.00011643,2]
[352613939,1739200244783,-204.43537494,0.00011643,2]
[352613940,1739200244792,-577.03,0.00011643,2]
[352613941,1739200244802,-628.96,0.00011643,2]
[352613942,1739200244812,-556.25415265,0.00011643,2]
[352613943,1739200244821,-500.0,0.00011643,2]
[352613944,1739200244831,-500.0,0.00011643,2]
[352613945,1739200244840,-500.0,0.00011643,2]
[352613946,1739200244849,-500.0,0.00011643,2]
[352613947,1739200244859,-500.0,0.00011643,2]
[352613948,1739200244868,-1428.28,0.00011643,2]
[352613949,1739200244878,-2113.79,0.00011643,2]
[352613950,1739200244887,-606.7,0.00011643,2]
[352613951,1739200244896,-6346.95,0.00011643,2]
[352613952,1739200244905,-500.0,0.00011643,2]
[352613953,1739200244914,-517.11,0.00011643,2]
[352613954,1739200244924,-500.0,0.00011643,2]
[352613955,1739200244933,-500.0,0.00011643,2]
[352613956,1739200244943,-631.71,0.00011643,2]
[352613957,1739200244954,-500.0,0.00011643,2]
[352613958,1739200244965,-500.0,0.00011643,2]
[352613959,1739200244975,-500.0,0.00011643,2]
[352613960,1739200244984,-601.74,0.00011643,2]
[352613961,1739200244994,-500.0,0.00011643,2]
[352613962,1739200245003,-267.49,0.00011643,2]
[352613963,1739200245012,-557.35,0.00011643,2]
[352613964,1739200245022,-940.27,0.00011643,2]
[352613965,1739200245031,-500.0,0.00011643,2]
[352613966,1739200245040,-1223.86,0.00011643,2]
[352613967,1739200245049,-500.0,0.00011643,2]
[352613968,1739200245058,-500.0,0.00011643,2]
[352613969,1739200245068,-500.0,0.00011643,2]
[352613970,1739200245078,-4805.69,0.00011643,2]
[352613971,1739200245087,-500.0,0.00011643,2]
[352613972,1739200245096,-561.21,0.00011643,2]
[352613973,1739200245105,-500.0,0.00011643,2]
[352613974,1739200245114,-2762.59,0.00011643,2]
[352613975,1739200245123,-555.47,0.00011643,2]
[352613976,1739200245132,-500.0,0.00011643,2]
[352613977,1739200245145,-287.9,0.00011643,2]
[352613978,1739200245154,-1420.21,0.00011643,2]
[352613979,1739200245165,-768.73,0.00011643,2]
[352613980,1739200245174,-500.0,0.00011643,2]
[352613981,1739200245184,-290.86,0.00011643,2]
[352613982,1739200245194,-500.0,0.00011643,2]
[352613983,1739200245203,-953.19,0.00011643,2]
[352613984,1739200245213,-500.0,0.00011643,2]
[352613985,1739200245223,-1000.0,0.00011728,2]
[352613986,1739200245232,-287.884997,0.0001178,2]
[352613987,1739200245242,-533.67,0.0001178,2]
[352613988,1739200245252,-500.0,0.0001178,2]
[352613989,1739200245262,-500.0,0.0001178,2]
[352613990,1739200245271,-500.0,0.0001178,2]
[352613991,1739200245282,-500.0,0.0001178,2]
[352613992,1739200245292,-564.9,0.0001178,2]
[352613993,1739200245303,-500.0,0.0001178,2]
[352613994,1739200245312,-627.22,0.0001178,2]
[352613995,1739200245321,-500.0,0.0001178,2]
[352613996,1739200245332,-500.0,0.0001178,2]
[352613997,1739200245342,-500.0,0.0001178,2]
[352613998,1739200245351,-500.0,0.0001178,2]
[352613999,1739200245361,-537.54,0.0001178,2]
[352614000,1739200245371,-500.0,0.0001178,2]
[352614001,1739200245380,-843.72,0.0001178,2]
[352614002,1739200245389,-500.0,0.0001178,2]
[352614003,1739200245399,-500.0,0.0001178,2]
[352614004,1739200245408,-560.32,0.0001178,2]
[352614005,1739200245417,-500.0,0.0001178,2]
[352614006,1739200245426,-500.0,0.0001178,2]
[352614007,1739200245435,-500.0,0.0001178,2]
[352614008,1739200245446,-500.0,0.0001178,2]
[352614009,1739200245456,-151.0,0.0001178,2]
[352614010,1739200245465,-500.0,0.0001178,2]
[352614011,1739200245474,-500.0,0.0001178,2]
[352614012,1739200245484,-500.0,0.0001178,2]
[352614013,1739200245493,-13087.13,0.0001178,2]
[352614014,1739200245503,-2368.48,0.0001178,2]
[352614015,1739200245512,-756.19,0.0001178,2]
[352614016,1739200245521,-577.03,0.0001178,2]
[352614017,1739200245531,-628.96,0.0001178,2]
[352614018,1739200245540,-500.0,0.0001178,2]
[352614019,1739200245550,-151.0,0.0001178,2]
[352614020,1739200245559,-500.0,0.0001178,2]
[352614021,1739200245568,-500.0,0.0001178,2]
[352614022,1739200245578,-500.0,0.0001178,2]
[352614023,1739200245587,-571.76,0.0001178,2]
[352614024,1739200245596,-1428.28,0.0001178,2]
[352614025,1739200245606,-151.0,0.0001178,2]
[352614026,1739200245616,-2113.79,0.0001178,2]
[352614027,1739200245625,-151.0,0.0001178,2]
[352614028,1739200245638,-606.7,0.0001178,2]
[352614029,1739200245647,-6346.95,0.0001178,2]
[352614030,1739200245657,-500.0,0.0001178,2]
[352614031,1739200245667,-517.11,0.0001178,2]
[352614032,1739200245676,-500.0,0.0001178,2]
[352614033,1739200245685,-500.0,0.0001178,2]
[352614034,1739200245696,-151.0,0.0001178,2]
[352614035,1739200245706,-631.71,0.0001178,2]
[352614036,1739200245715,-500.0,0.0001178,2]
[352614037,1739200245725,-500.0,0.0001178,2]
[352614038,1739200245735,-500.0,0.0001178,2]
[352614039,1739200245744,-601.74,0.0001178,2]
[352614040,1739200245754,-151.0,0.0001178,2]
[352614041,1739200245763,-151.0,0.0001178,2]
[352614042,1739200245772,-500.0,0.0001178,2]
[352614043,1739200245782,-557.35,0.0001178,2]
[352614044,1739200245791,-151.770735,0.0001178,2]
[352614045,1739200245800,-940.27,0.0001178,2]
[352614046,1739200245810,-151.0,0.0001178,2]
[352614047,1739200245819,-500.0,0.0001178,2]
[352614048,1739200245828,-151.0,0.0001178,2]
[352614049,1739200245838,-1223.86,0.0001178,2]
[352614050,1739200245848,-500.0,0.0001178,2]
[352614051,1739200245858,-500.0,0.0001178,2]
[352614052,1739200245867,-500.0,0.0001178,2]
[352614053,1739200245877,-4805.69,0.0001178,2]
[352614054,1739200245887,-500.0,0.0001178,2]
[352614055,1739200245896,-561.21,0.0001178,2]
[352614056,1739200245906,-500.0,0.0001178,2]
[352614057,1739200245915,-2762.59,0.0001178,2]
[352614058,1739200245924,-555.47,0.0001178,2]
[352614059,1739200245934,-500.0,0.0001178,2]
[352614060,1739200245944,-1420.21,0.0001178,2]
[352614061,1739200245954,-768.73,0.0001178,2]
[352614062,1739200245964,-500.0,0.0001178,2]
[352614063,1739200245973,-151.0,0.0001178,2]
[352614064,1739200245982,-167.904118,0.0001178,2]
[352614065,1739200245992,-183.418955,0.0001178,2]
[352614066,1739200246002,-500.0,0.0001178,2]
[352614067,1739200246105,-167.904118,0.0001178,2]
[352614068,1739200246116,-183.418955,0.0001178,2]
[352614069,1739200246126,-247.67445963,0.00011811,2]
[352614070,1739200246136,-13267.29691025,0.00011916,2]
[352614071,1739200246150,-500.0,0.00011917,2]
[352614072,1739200246160,-500.0,0.00011917,2]
[352614073,1739200246170,-500.0,0.00011917,2]
[352614075,1739200246179,-564.9,0.00011917,2]
[352614076,1739200246191,-500.0,0.00011917,2]
[352614077,1739200246200,-592.75133615,0.00011917,2]
[352614078,1739200246223,-34.46866385,0.00011917,2]
[352614079,1739200246233,-500.0,0.00011917,2]
[352614080,1739200246242,-500.0,0.00011917,2]
[352614081,1739200246252,-500.0,0.00011917,2]
[352614082,1739200246261,-500.0,0.00011917,2]
[352614083,1739200246270,-537.54,0.00011917,2]
[352614084,1739200246280,-500.0,0.00011917,2]
[352614085,1739200246289,-843.72,0.00011917,2]
[352614086,1739200246299,-151.0,0.00011917,2]
[352614087,1739200246308,-151.0,0.00011917,2]
[352614088,1739200246318,-500.0,0.00011917,2]
[352614089,1739200246328,-522.01,0.00011917,2]
[352614090,1739200246337,-151.0,0.00011917,2]
[352614091,1739200246346,-151.0,0.00011917,2]
[352614092,1739200246356,-560.32,0.00011917,2]
[352614093,1739200246366,-500.0,0.00011917,2]
[352614094,1739200246375,-352.044979,0.00011917,2]
[352614095,1739200246385,-151.0,0.00011917,2]
[352614096,1739200246394,-352.044979,0.00011917,2]
[352614097,1739200246404,-151.0,0.00011917,2]
[352614098,1739200246413,-500.0,0.00011917,2]
[352614099,1739200246423,-500.0,0.00011917,2]
[352614100,1739200246432,-500.0,0.00011917,2]
[352614101,1739200246442,-225.411458,0.00011917,2]
[352614102,1739200246451,-401.083147,0.00011917,2]
[352614104,1739200246461,-225.411458,0.00011917,2]
[352614106,1739200246470,-401.083147,0.00011917,2]
[352614108,1739200246480,-500.0,0.00011917,2]
[352614110,1739200246490,-500.0,0.00011917,2]
[352614111,1739200246499,-500.0,0.00011917,2]
[352614112,1739200246508,-13087.13,0.00011917,2]
[352614113,1739200246518,-241.470864,0.00011917,2]
[352614114,1739200246528,-241.470864,0.00011917,2]
[352614115,1739200246537,-2368.48,0.00011917,2]
[352614116,1739200246547,-756.19,0.00011917,2]
[352614117,1739200246557,-151.0,0.00011917,2]
[352614118,1739200246567,-577.03,0.00011917,2]
[352614119,1739200246577,-348.354644,0.00011917,2]
[352614120,1739200246587,-628.96,0.00011917,2]
[352614121,1739200246596,-500.0,0.00011917,2]
[352614122,1739200246606,-348.354644,0.00011917,2]
[352614123,1739200246616,-500.0,0.00011917,2]
[352614124,1739200246625,-500.0,0.00011917,2]
[352614126,1739200246635,-500.0,0.00011917,2]
[352614127,1739200246644,-1428.28,0.00011917,2]
[352614128,1739200246653,-2113.79,0.00011917,2]
[352614129,1739200246663,-606.7,0.00011917,2]
[352614130,1739200246672,-6346.95,0.00011917,2]
[352614131,1739200246682,-527.16536164,0.00011917,2]
[352614132,1739200246692,-517.11,0.00011917,2]
[352614133,1739200246702,-500.0,0.00011917,2]
[352614134,1739200246711,-218.6098342,0.00011917,2]
[352614135,1739200246721,-631.71,0.00011917,2]
[352614136,1739200246730,-500.0,0.00011917,2]
[352614137,1739200246740,-500.0,0.00011917,2]
[352614138,1739200246750,-500.0,0.00011917,2]
[352614139,1739200246759,-601.74,0.00011917,2]
[352614140,1739200246769,-500.0,0.00011917,2]
[352614142,1739200246779,-557.35,0.00011917,2]
[352614144,1739200246788,-940.27,0.00011917,2]
[352614146,1739200246798,-500.0,0.00011917,2]
[352614148,1739200246807,-1223.86,0.00011917,2]
[352614150,1739200246817,-500.0,0.00011917,2]
[352614152,1739200246827,-500.0,0.00011917,2]